[Event "Late-Titled-Tuesday-Blitz-October-24-2023"]
[Site "Chess.com"]
[Date "2023.10.24"]
[Round "9"]
[White "The_Sherman_Variation"]
[Black "rockstar0902"]
[Result "1-0"]
[WhiteElo "2595"]
[BlackElo "2653"]
[TimeControl "180+1"]
[EndTime "15:41:00 PDT"]
[Termination "The_Sherman_Variation won by resignation"]

1. e4 {[%clk 0:02:54.6]} 1... e6 {[%clk 0:01:33.3]} 2. d4 {[%clk 0:02:51.5]}
2... d5 {[%clk 0:01:34.2]} 3. e5 {[%clk 0:02:52]} 3... c5 {[%clk 0:01:32.9]} 4.
c3 {[%clk 0:02:52.7]} 4... Qb6 {[%clk 0:01:33.3]} 5. Nf3 {[%clk 0:02:52.9]} 5...
Bd7 {[%clk 0:01:33.5]} 6. Be2 {[%clk 0:02:53.6]} 6... Bb5 {[%clk 0:01:32.7]} 7.
Bxb5+ {[%clk 0:02:54]} 7... Qxb5 {[%clk 0:01:33.6]} 8. Na3 {[%clk 0:02:54.6]}
8... Qa6 {[%clk 0:01:33.4]} 9. dxc5 {[%clk 0:02:55]} 9... Bxc5 {[%clk 0:01:33]}
10. b4 {[%clk 0:02:55.7]} 10... Be7 {[%clk 0:01:32.4]} 11. Nd4 {[%clk
0:02:56.3]} 11... Qb6 {[%clk 0:01:30.6]} 12. Be3 {[%clk 0:02:56.2]} 12... Qc7
{[%clk 0:01:26]} 13. Nab5 {[%clk 0:02:54.4]} 13... Qxe5 {[%clk 0:01:23.3]} 14.
Nf3 {[%clk 0:02:47.5]} 14... Qf6 {[%clk 0:01:16.5]} 15. Nc7+ {[%clk 0:02:44.6]}
15... Kd7 {[%clk 0:01:16.6]} 16. Bd4 {[%clk 0:02:45.3]} 16... Qf4 {[%clk
0:01:06.5]} 17. Nxa8 {[%clk 0:02:44.2]} 17... f6 {[%clk 0:01:05.1]} 18. O-O
{[%clk 0:02:41.6]} 18... Nc6 {[%clk 0:01:05.3]} 19. b5 {[%clk 0:02:39.6]} 19...
Nxd4 {[%clk 0:01:04.3]} 20. cxd4 {[%clk 0:02:40.5]} 20... Nh6 {[%clk 0:01:03.8]}
21. Qa4 {[%clk 0:02:39.3]} 21... Rxa8 {[%clk 0:01:01.1]} 22. b6+ {[%clk
0:02:40]} 22... Kd8 {[%clk 0:01:00.1]} 23. bxa7 {[%clk 0:02:40.7]} 23... Bd6
{[%clk 0:00:55.2]} 24. Qb3 {[%clk 0:02:35.5]} 24... Ng4 {[%clk 0:00:35.1]} 25.
g3 {[%clk 0:02:26]} 25... Qf5 {[%clk 0:00:24.6]} 26. Qxb7 {[%clk 0:02:25.2]}
26... Rxa7 {[%clk 0:00:23.8]} 27. Qxa7 {[%clk 0:02:24]} 27... Qxf3 {[%clk
0:00:23.2]} 28. Rab1 {[%clk 0:02:21.9]} 28... h5 {[%clk 0:00:15.8]} 29. Rb7
{[%clk 0:02:17.2]} 29... h4 {[%clk 0:00:13.4]} 30. Qa8+ {[%clk 0:02:17]} 1-0

[Event "Late-Titled-Tuesday-Blitz-October-24-2023"]
[Site "Chess.com"]
[Date "2023.10.24"]
[Round "9"]
[White "Payyappat"]
[Black "dedpihto_v_kozhanom_palto"]
[Result "1-0"]
[WhiteElo "2545"]
[BlackElo "2631"]
[TimeControl "180+1"]
[EndTime "15:41:04 PDT"]
[Termination "Payyappat won by resignation"]

1. e4 {[%clk 0:03:00.9]} 1... g6 {[%clk 0:03:00.3]} 2. d4 {[%clk 0:03:00.4]}
2... Bg7 {[%clk 0:03:01]} 3. Nc3 {[%clk 0:03:01.2]} 3... d6 {[%clk 0:03:00.7]}
4. Be3 {[%clk 0:03:01.3]} 4... Nc6 {[%clk 0:03:01.2]} 5. Qd2 {[%clk 0:03:00.4]}
5... e5 {[%clk 0:03:01.7]} 6. Nf3 {[%clk 0:02:59.1]} 6... f5 {[%clk 0:03:00]} 7.
dxe5 {[%clk 0:02:49]} 7... Nxe5 {[%clk 0:02:53.8]} 8. Nxe5 {[%clk 0:02:47]} 8...
Bxe5 {[%clk 0:02:54.7]} 9. O-O-O {[%clk 0:02:45.7]} 9... Ne7 {[%clk 0:02:42.9]}
10. f4 {[%clk 0:02:44.7]} 10... Bg7 {[%clk 0:02:41.6]} 11. e5 {[%clk 0:02:44.5]}
11... O-O {[%clk 0:02:29.8]} 12. Bc4+ {[%clk 0:02:33.2]} 12... Kh8 {[%clk
0:02:29.7]} 13. exd6 {[%clk 0:02:33.2]} 13... cxd6 {[%clk 0:02:30.6]} 14. Qxd6
{[%clk 0:02:33.7]} 14... Qxd6 {[%clk 0:02:23.9]} 15. Rxd6 {[%clk 0:02:34.6]}
15... a6 {[%clk 0:02:18.6]} 16. Bb6 {[%clk 0:02:30.8]} 16... g5 {[%clk
0:02:04.3]} 17. Re1 {[%clk 0:02:21]} 17... Ng6 {[%clk 0:01:54.9]} 18. Nd5 {[%clk
0:02:01.9]} 18... Nxf4 {[%clk 0:01:27.7]} 19. Nxf4 {[%clk 0:01:58]} 19... gxf4
{[%clk 0:01:28.6]} 20. Re7 {[%clk 0:01:57.7]} 20... f3 {[%clk 0:01:25.7]} 21.
Rxg7 {[%clk 0:01:54.6]} 21... Kxg7 {[%clk 0:01:08]} 22. Bd4+ {[%clk 0:01:52.5]}
22... Rf6 {[%clk 0:01:07.9]} 23. Rxf6 {[%clk 0:01:44.8]} 23... fxg2 {[%clk
0:01:04.6]} 24. Rf7+ {[%clk 0:01:38.8]} 24... Kh6 {[%clk 0:01:01.7]} 25. Rg7
{[%clk 0:01:33.2]} 25... f4 {[%clk 0:01:01.7]} 26. Rxg2 {[%clk 0:01:32.1]} 26...
Bf5 {[%clk 0:01:01]} 27. Bg7+ {[%clk 0:01:26.2]} 27... Kh5 {[%clk 0:01:00.6]}
28. Bf6 {[%clk 0:01:25.2]} 28... Bg4 {[%clk 0:00:52.6]} 29. Bf7+ {[%clk
0:01:22.6]} 29... Kh6 {[%clk 0:00:51.8]} 30. Rxg4 {[%clk 0:01:23.2]} 1-0

[Event "Late-Titled-Tuesday-Blitz-October-24-2023"]
[Site "Chess.com"]
[Date "2023.10.24"]
[Round "9"]
[White "egnfanclub"]
[Black "venturov"]
[Result "1-0"]
[WhiteElo "2389"]
[BlackElo "2484"]
[TimeControl "180+1"]
[EndTime "15:41:21 PDT"]
[Termination "egnfanclub won by resignation"]

1. e4 {[%clk 0:03:00.9]} 1... Nf6 {[%clk 0:03:00]} 2. Nc3 {[%clk 0:03:00.4]}
2... d5 {[%clk 0:03:00]} 3. e5 {[%clk 0:03:00.4]} 3... Nfd7 {[%clk 0:03:00.1]}
4. e6 {[%clk 0:03:00.7]} 4... fxe6 {[%clk 0:02:59.8]} 5. d4 {[%clk 0:03:01.4]}
5... c5 {[%clk 0:03:00.4]} 6. Nf3 {[%clk 0:03:01.3]} 6... Nc6 {[%clk 0:03:00.8]}
7. Bb5 {[%clk 0:02:57.2]} 7... g6 {[%clk 0:02:56.6]} 8. Be3 {[%clk 0:02:53.8]}
8... Bg7 {[%clk 0:02:53.6]} 9. Bxc6 {[%clk 0:02:45.8]} 9... bxc6 {[%clk
0:02:53.6]} 10. Ng5 {[%clk 0:02:18.3]} 10... Nf6 {[%clk 0:02:50.7]} 11. f4
{[%clk 0:02:18.4]} 11... O-O {[%clk 0:02:06]} 12. O-O {[%clk 0:02:17.5]} 12...
Qb6 {[%clk 0:01:56.7]} 13. Na4 {[%clk 0:02:07.1]} 13... Qb5 {[%clk 0:01:52.1]}
14. Nxc5 {[%clk 0:02:02.1]} 14... Qxb2 {[%clk 0:01:47.5]} 15. Ngxe6 {[%clk
0:01:55.7]} 15... Bxe6 {[%clk 0:01:40.1]} 16. Nxe6 {[%clk 0:01:56.6]} 16... Rf7
{[%clk 0:01:40.6]} 17. Nxg7 {[%clk 0:01:57]} 17... Kxg7 {[%clk 0:01:39.4]} 18.
f5 {[%clk 0:01:55.4]} 18... Raf8 {[%clk 0:01:31.3]} 19. fxg6 {[%clk 0:01:53.6]}
19... hxg6 {[%clk 0:01:32.2]} 20. Qd3 {[%clk 0:01:38.9]} 20... Ng4 {[%clk
0:01:21.9]} 21. Rfb1 {[%clk 0:01:18.4]} 21... Ne5 {[%clk 0:00:45.3]} 22. dxe5
{[%clk 0:01:15.6]} 1-0

[Event "Late-Titled-Tuesday-Blitz-October-24-2023"]
[Site "Chess.com"]
[Date "2023.10.24"]
[Round "9"]
[White "NMJeevanK"]
[Black "Kombinator01"]
[Result "1-0"]
[WhiteElo "2590"]
[BlackElo "2423"]
[TimeControl "180+1"]
[EndTime "15:41:38 PDT"]
[Termination "NMJeevanK won by resignation"]

1. e4 {[%clk 0:03:00.9]} 1... e5 {[%clk 0:02:58.5]} 2. Nf3 {[%clk 0:03:00.2]}
2... Nf6 {[%clk 0:02:58.1]} 3. Nxe5 {[%clk 0:02:58.9]} 3... Nxe4 {[%clk
0:02:58.1]} 4. Qe2 {[%clk 0:02:56.1]} 4... Qe7 {[%clk 0:02:57.3]} 5. Qxe4 {[%clk
0:02:53.9]} 5... d6 {[%clk 0:02:57.4]} 6. d4 {[%clk 0:02:48.9]} 6... dxe5 {[%clk
0:02:57.2]} 7. Qxe5 {[%clk 0:02:49]} 7... Qxe5+ {[%clk 0:02:56.7]} 8. dxe5
{[%clk 0:02:49.9]} 8... Bf5 {[%clk 0:02:56.9]} 9. Nc3 {[%clk 0:02:43.9]} 9...
Nd7 {[%clk 0:02:48.2]} 10. Bf4 {[%clk 0:02:39]} 10... Bxc2 {[%clk 0:02:28.7]}
11. Rc1 {[%clk 0:02:34.9]} 11... Bf5 {[%clk 0:02:20.9]} 12. Nd5 {[%clk
0:02:34.3]} 12... Rc8 {[%clk 0:02:08.9]} 13. Nxc7+ {[%clk 0:02:29.5]} 13... Kd8
{[%clk 0:02:08.5]} 14. Nb5 {[%clk 0:02:08.6]} 14... Bb4+ {[%clk 0:01:56.2]} 15.
Kd1 {[%clk 0:02:04.1]} 15... Rxc1+ {[%clk 0:01:51]} 16. Kxc1 {[%clk 0:02:05]}
16... Re8 {[%clk 0:01:41]} 17. a3 {[%clk 0:01:57.9]} 17... Bc5 {[%clk
0:01:35.6]} 18. Bg3 {[%clk 0:01:29.1]} 18... a6 {[%clk 0:01:19.5]} 19. Nc3
{[%clk 0:01:24.4]} 19... Nxe5 {[%clk 0:01:19.5]} 20. Be2 {[%clk 0:01:24.4]}
20... Kc8 {[%clk 0:01:11.1]} 21. Rd1 {[%clk 0:01:23.5]} 21... Nc6 {[%clk
0:01:03.3]} 22. Rd5 {[%clk 0:01:18.7]} 22... Bd4 {[%clk 0:00:50.5]} 23. Rxf5
{[%clk 0:01:14.6]} 23... Bxc3 {[%clk 0:00:50.8]} 24. Bg4 {[%clk 0:01:14.3]}
24... Bd4 {[%clk 0:00:32.3]} 25. Rxf7+ {[%clk 0:01:03.1]} 25... Kd8 {[%clk
0:00:31.1]} 26. Rd7+ {[%clk 0:01:03.2]} 26... Kc8 {[%clk 0:00:30.2]} 1-0

[Event "Late-Titled-Tuesday-Blitz-October-24-2023"]
[Site "Chess.com"]
[Date "2023.10.24"]
[Round "9"]
[White "Lion-Al-Messi"]
[Black "SanchezKelvin"]
[Result "1-0"]
[WhiteElo "2659"]
[BlackElo "2560"]
[TimeControl "180+1"]
[EndTime "15:41:44 PDT"]
[Termination "Lion-Al-Messi won on time"]

1. e4 {[%clk 0:03:00.9]} 1... e5 {[%clk 0:02:54.8]} 2. Nf3 {[%clk 0:03:01.3]}
2... Nc6 {[%clk 0:02:53.2]} 3. Bb5 {[%clk 0:03:01.4]} 3... a6 {[%clk 0:02:53]}
4. Ba4 {[%clk 0:03:01.3]} 4... b5 {[%clk 0:02:52.5]} 5. Bb3 {[%clk 0:03:01.1]}
5... Nf6 {[%clk 0:02:53.2]} 6. d4 {[%clk 0:02:58.7]} 6... exd4 {[%clk
0:02:50.7]} 7. e5 {[%clk 0:02:49.1]} 7... Ne4 {[%clk 0:02:45.6]} 8. O-O {[%clk
0:02:48.4]} 8... Be7 {[%clk 0:02:37.5]} 9. Bd5 {[%clk 0:02:47.7]} 9... Nc5
{[%clk 0:02:33.7]} 10. Nxd4 {[%clk 0:02:47.2]} 10... Bb7 {[%clk 0:02:33.6]} 11.
Nc3 {[%clk 0:02:37.8]} 11... Nxe5 {[%clk 0:02:20.5]} 12. Re1 {[%clk 0:02:35.6]}
12... Nc6 {[%clk 0:01:45.3]} 13. Bxf7+ {[%clk 0:02:23]} 13... Kxf7 {[%clk
0:01:42.5]} 14. Qf3+ {[%clk 0:02:21.6]} 14... Kg8 {[%clk 0:01:15.1]} 15. Qd5+
{[%clk 0:02:11.3]} 15... Ne6 {[%clk 0:01:11.6]} 16. Nxe6 {[%clk 0:02:03.4]}
16... dxe6 {[%clk 0:01:09.1]} 17. Qxe6+ {[%clk 0:02:04.3]} 17... Kf8 {[%clk
0:01:08.8]} 18. Bf4 {[%clk 0:01:58.1]} 18... Nd4 {[%clk 0:00:54]} 19. Qe5 {[%clk
0:01:53.9]} 19... Qd6 {[%clk 0:00:40.9]} 20. Qe3 {[%clk 0:01:37.2]} 20... Qc5
{[%clk 0:00:07.6]} 21. Rad1 {[%clk 0:01:32.2]} 21... Rd8 {[%clk 0:00:06.7]} 22.
Be5 {[%clk 0:01:20.9]} 22... Nf5 {[%clk 0:00:06.1]} 23. Rxd8+ {[%clk 0:01:20.5]}
23... Bxd8 {[%clk 0:00:06.5]} 24. Qxc5+ {[%clk 0:01:20.6]} 1-0

[Event "Late-Titled-Tuesday-Blitz-October-24-2023"]
[Site "Chess.com"]
[Date "2023.10.24"]
[Round "9"]
[White "Alphafischer2019"]
[Black "Gogolev_Artemy"]
[Result "1-0"]
[WhiteElo "2610"]
[BlackElo "2429"]
[TimeControl "180+1"]
[EndTime "15:41:59 PDT"]
[Termination "Alphafischer2019 won on time"]

1. e4 {[%clk 0:03:00.9]} 1... c5 {[%clk 0:02:55]} 2. d3 {[%clk 0:03:00.6]} 2...
Nc6 {[%clk 0:02:52.3]} 3. g3 {[%clk 0:03:00.9]} 3... g6 {[%clk 0:02:51.2]} 4.
Bg2 {[%clk 0:03:01.1]} 4... Bg7 {[%clk 0:02:49.8]} 5. f4 {[%clk 0:03:01.7]} 5...
d6 {[%clk 0:02:48.5]} 6. Nf3 {[%clk 0:03:01.8]} 6... e6 {[%clk 0:02:48.9]} 7.
O-O {[%clk 0:03:02.1]} 7... Nge7 {[%clk 0:02:49.5]} 8. c3 {[%clk 0:03:02.7]}
8... b5 {[%clk 0:02:46.4]} 9. Be3 {[%clk 0:03:02.6]} 9... O-O {[%clk 0:02:42.1]}
10. d4 {[%clk 0:03:02.3]} 10... cxd4 {[%clk 0:02:05.2]} 11. cxd4 {[%clk
0:03:03.2]} 11... Bb7 {[%clk 0:02:05.6]} 12. Nc3 {[%clk 0:02:59.2]} 12... a6
{[%clk 0:02:05.8]} 13. g4 {[%clk 0:02:54.3]} 13... f5 {[%clk 0:02:04.4]} 14.
gxf5 {[%clk 0:02:52.7]} 14... exf5 {[%clk 0:01:57.2]} 15. e5 {[%clk 0:02:51.9]}
15... dxe5 {[%clk 0:01:53.6]} 16. dxe5 {[%clk 0:02:51.2]} 16... h6 {[%clk
0:01:16.3]} 17. Bc5 {[%clk 0:02:48.2]} 17... Kh7 {[%clk 0:00:53.2]} 18. Qe2
{[%clk 0:02:41.5]} 18... Qc7 {[%clk 0:00:41.5]} 19. Bd6 {[%clk 0:02:29.6]} 19...
Qb6+ {[%clk 0:00:40.8]} 20. Kh1 {[%clk 0:02:29.3]} 20... Rfd8 {[%clk 0:00:39.1]}
21. Rfd1 {[%clk 0:02:21.7]} 21... Nc8 {[%clk 0:00:38.3]} 22. Nd5 {[%clk
0:02:21.5]} 22... Qa7 {[%clk 0:00:20.8]} 23. Bc7 {[%clk 0:02:14]} 23... Rxd5
{[%clk 0:00:17.1]} 24. Rxd5 {[%clk 0:02:12.5]} 24... Nb6 {[%clk 0:00:17.4]} 25.
Bxb6 {[%clk 0:02:10]} 25... Qxb6 {[%clk 0:00:18.3]} 26. Rd6 {[%clk 0:02:10.6]}
26... Bf8 {[%clk 0:00:15.4]} 27. Rd7+ {[%clk 0:02:10.1]} 27... Kg8 {[%clk
0:00:14.2]} 28. Qd1 {[%clk 0:02:03.9]} 28... Rd8 {[%clk 0:00:13]} 29. Qb3+
{[%clk 0:02:02.4]} 29... Kh8 {[%clk 0:00:12.1]} 30. Qf7 {[%clk 0:02:02.2]} 30...
Rxd7 {[%clk 0:00:12.6]} 31. Qxd7 {[%clk 0:02:01.7]} 31... Be7 {[%clk 0:00:06.1]}
32. Qe8+ {[%clk 0:02:00.1]} 32... Kg7 {[%clk 0:00:06.7]} 33. Nh4 {[%clk
0:02:00.1]} 33... Bxh4 {[%clk 0:00:06.3]} 34. Qd7+ {[%clk 0:01:54.4]} 34... Be7
{[%clk 0:00:04.8]} 35. Rc1 {[%clk 0:01:53.2]} 35... Qe3 {[%clk 0:00:01.3]} 36.
Rd1 {[%clk 0:01:45.3]} 36... Qe2 {[%clk 0:00:01.8]} 37. Rg1 {[%clk 0:01:39.9]}
1-0

[Event "Late-Titled-Tuesday-Blitz-October-24-2023"]
[Site "Chess.com"]
[Date "2023.10.24"]
[Round "9"]
[White "Alex_Sahakyan2006"]
[Black "dropstoneDP"]
[Result "1/2-1/2"]
[WhiteElo "2788"]
[BlackElo "3102"]
[TimeControl "180+1"]
[EndTime "15:42:00 PDT"]
[Termination "Game drawn by agreement"]

1. d4 {[%clk 0:03:00.9]} 1... d5 {[%clk 0:02:59.2]} 2. c4 {[%clk 0:02:57.5]}
2... dxc4 {[%clk 0:03:00.1]} 3. e3 {[%clk 0:02:56.4]} 3... Nf6 {[%clk 0:03:00]}
4. Bxc4 {[%clk 0:02:56.2]} 4... e6 {[%clk 0:03:00.9]} 5. Nf3 {[%clk 0:02:55.5]}
5... c5 {[%clk 0:03:01.3]} 6. O-O {[%clk 0:02:54.9]} 6... a6 {[%clk 0:03:01.8]}
7. dxc5 {[%clk 0:02:53.4]} 7... Bxc5 {[%clk 0:03:01.1]} 8. Qxd8+ {[%clk
0:02:53.2]} 8... Kxd8 {[%clk 0:03:02]} 9. b3 {[%clk 0:02:52.7]} 9... Ke7 {[%clk
0:03:00.9]} 10. Bb2 {[%clk 0:02:48.5]} 10... b5 {[%clk 0:02:56.3]} 11. Be2
{[%clk 0:02:48.4]} 11... Bb7 {[%clk 0:02:56.6]} 12. a4 {[%clk 0:02:47.6]} 12...
bxa4 {[%clk 0:02:55.5]} 13. Rxa4 {[%clk 0:02:44.7]} 13... Nbd7 {[%clk
0:02:55.9]} 14. Nbd2 {[%clk 0:02:42.5]} 14... Rhb8 {[%clk 0:02:53.4]} 15. Rc1
{[%clk 0:02:39.1]} 15... Ke8 {[%clk 0:02:46.9]} 16. Ne5 {[%clk 0:02:19.9]} 16...
Rc8 {[%clk 0:02:05.6]} 17. Nxd7 {[%clk 0:01:46.3]} 17... Kxd7 {[%clk 0:02:06.5]}
18. Rca1 {[%clk 0:01:46.2]} 18... Ke8 {[%clk 0:01:52.8]} 19. Bxa6 {[%clk
0:01:33.9]} 19... Bxa6 {[%clk 0:01:52.9]} 20. Rxa6 {[%clk 0:01:34.8]} 20... Rxa6
{[%clk 0:01:53.3]} 21. Rxa6 {[%clk 0:01:35.7]} 21... Rd8 {[%clk 0:01:53.9]} 22.
Bxf6 {[%clk 0:01:00.4]} 22... gxf6 {[%clk 0:01:48.2]} 23. Nf1 {[%clk 0:00:54.2]}
23... Rb8 {[%clk 0:01:47.1]} 24. Ra5 {[%clk 0:00:49.8]} 24... Bf8 {[%clk
0:01:41.6]} 25. Rh5 {[%clk 0:00:48]} 25... h6 {[%clk 0:01:41.5]} 26. Nd2 {[%clk
0:00:39.1]} 26... Rd8 {[%clk 0:01:40.2]} 27. Nf1 {[%clk 0:00:39.7]} 27... Rb8
{[%clk 0:01:40]} 28. Ra5 {[%clk 0:00:36]} 28... f5 {[%clk 0:01:30]} 29. Nd2
{[%clk 0:00:15.7]} 29... Bb4 {[%clk 0:01:25.8]} 30. Ra2 {[%clk 0:00:15.9]} 30...
Bxd2 {[%clk 0:01:16.6]} 31. Rxd2 {[%clk 0:00:16.8]} 31... Rxb3 {[%clk
0:01:16.9]} 32. g3 {[%clk 0:00:17.4]} 32... Kf8 {[%clk 0:01:17.2]} 33. Kg2
{[%clk 0:00:18.1]} 33... Kg7 {[%clk 0:01:17.8]} 34. h4 {[%clk 0:00:18.8]} 34...
h5 {[%clk 0:01:18]} 35. Rd4 {[%clk 0:00:19.2]} 35... Rb8 {[%clk 0:01:17.9]} 36.
Rf4 {[%clk 0:00:19.4]} 1/2-1/2

[Event "Late-Titled-Tuesday-Blitz-October-24-2023"]
[Site "Chess.com"]
[Date "2023.10.24"]
[Round "9"]
[White "Tunahan_Makaraci"]
[Black "FM_Kappeler"]
[Result "1-0"]
[WhiteElo "2419"]
[BlackElo "2281"]
[TimeControl "180+1"]
[EndTime "15:42:01 PDT"]
[Termination "Tunahan_Makaraci won by resignation"]

1. e4 {[%clk 0:02:58.1]} 1... c5 {[%clk 0:02:59.2]} 2. c3 {[%clk 0:02:57.4]}
2... d6 {[%clk 0:02:58.3]} 3. d4 {[%clk 0:02:57]} 3... Nf6 {[%clk 0:02:58.2]} 4.
dxc5 {[%clk 0:02:56.6]} 4... Nc6 {[%clk 0:02:56.8]} 5. Qd3 {[%clk 0:02:56.8]}
5... dxc5 {[%clk 0:02:42.3]} 6. Qxd8+ {[%clk 0:02:56]} 6... Nxd8 {[%clk
0:02:42]} 7. f3 {[%clk 0:02:55.4]} 7... g6 {[%clk 0:02:37.9]} 8. Be3 {[%clk
0:02:53.7]} 8... b6 {[%clk 0:02:32.7]} 9. Na3 {[%clk 0:02:47]} 9... Bg7 {[%clk
0:02:28]} 10. Bb5+ {[%clk 0:02:46]} 10... Bd7 {[%clk 0:02:19.7]} 11. O-O-O
{[%clk 0:02:45.5]} 11... Bxb5 {[%clk 0:02:12.8]} 12. Nxb5 {[%clk 0:02:45.5]}
12... O-O {[%clk 0:02:12.4]} 13. Ne2 {[%clk 0:02:41]} 13... Ne6 {[%clk
0:01:56.4]} 14. Rhe1 {[%clk 0:02:36.2]} 14... Rfd8 {[%clk 0:01:53.7]} 15. Kc2
{[%clk 0:02:34.6]} 15... a6 {[%clk 0:01:48.6]} 16. Na3 {[%clk 0:02:34.3]} 16...
b5 {[%clk 0:01:44.8]} 17. Nf4 {[%clk 0:02:31.5]} 17... Nxf4 {[%clk 0:01:40.8]}
18. Bxf4 {[%clk 0:02:31.7]} 18... Nd7 {[%clk 0:01:29.8]} 19. Bc7 {[%clk
0:02:30]} 19... Be5 {[%clk 0:01:17]} 20. Bxd8 {[%clk 0:02:28.9]} 20... Rxd8
{[%clk 0:01:17]} 21. g3 {[%clk 0:02:29]} 21... c4 {[%clk 0:01:08.1]} 22. Rd5
{[%clk 0:02:28.8]} 22... Bd6 {[%clk 0:01:06.5]} 23. e5 {[%clk 0:02:23]} 23...
Bxa3 {[%clk 0:01:05.6]} 24. bxa3 {[%clk 0:02:18.1]} 24... Kf8 {[%clk 0:01:01.4]}
25. e6 {[%clk 0:02:13.9]} 25... fxe6 {[%clk 0:01:00.3]} 26. Rxe6 {[%clk
0:02:14.1]} 26... Ke8 {[%clk 0:00:58.7]} 27. Rxa6 {[%clk 0:02:13.4]} 27... Rb8
{[%clk 0:00:55.2]} 28. Ra7 {[%clk 0:02:10]} 28... Nf6 {[%clk 0:00:46.5]} 29. Re5
{[%clk 0:02:09.9]} 29... Ng8 {[%clk 0:00:45.7]} 30. a4 {[%clk 0:02:07.7]} 30...
bxa4 {[%clk 0:00:44]} 31. Rxa4 {[%clk 0:02:07.5]} 31... Kf7 {[%clk 0:00:41.9]}
32. Rxc4 {[%clk 0:02:07]} 32... Kf6 {[%clk 0:00:41.2]} 33. Re3 {[%clk
0:01:59.2]} 33... Rb5 {[%clk 0:00:37]} 34. a4 {[%clk 0:01:59.1]} 34... Ra5
{[%clk 0:00:37.2]} 35. Kb3 {[%clk 0:01:56.1]} 35... Nh6 {[%clk 0:00:33.2]} 36.
g4 {[%clk 0:01:55.5]} 36... Nf7 {[%clk 0:00:32.6]} 37. Kb4 {[%clk 0:01:54.8]}
37... Nd6 {[%clk 0:00:30.9]} 38. Rf4+ {[%clk 0:01:41.7]} 38... Kg5 {[%clk
0:00:30.5]} 39. Kxa5 {[%clk 0:01:39.9]} 39... Kxf4 {[%clk 0:00:30.5]} 40. Rxe7
{[%clk 0:01:40.5]} 40... Kxf3 {[%clk 0:00:26.6]} 41. Rd7 {[%clk 0:01:40.7]}
41... Ne4 {[%clk 0:00:23.6]} 42. Kb4 {[%clk 0:01:39.1]} 42... Nf6 {[%clk
0:00:18.8]} 43. Rf7 {[%clk 0:01:38.7]} 1-0

[Event "Late-Titled-Tuesday-Blitz-October-24-2023"]
[Site "Chess.com"]
[Date "2023.10.24"]
[Round "9"]
[White "TheMagician"]
[Black "Chessbard1972"]
[Result "0-1"]
[WhiteElo "2172"]
[BlackElo "2350"]
[TimeControl "180+1"]
[EndTime "15:42:09 PDT"]
[Termination "Chessbard1972 won by resignation"]

1. d4 {[%clk 0:02:47.9]} 1... Nf6 {[%clk 0:02:57.2]} 2. Nf3 {[%clk 0:02:47.4]}
2... g6 {[%clk 0:02:57]} 3. g3 {[%clk 0:02:47.9]} 3... Bg7 {[%clk 0:02:56.1]} 4.
Bg2 {[%clk 0:02:48.8]} 4... O-O {[%clk 0:02:54.5]} 5. O-O {[%clk 0:02:49.7]}
5... d5 {[%clk 0:02:52]} 6. c4 {[%clk 0:02:50.6]} 6... Nc6 {[%clk 0:02:50.5]} 7.
cxd5 {[%clk 0:02:48.2]} 7... Nxd5 {[%clk 0:02:48.4]} 8. h3 {[%clk 0:02:43.3]}
8... Nb6 {[%clk 0:02:46.1]} 9. e3 {[%clk 0:02:40.3]} 9... Re8 {[%clk 0:02:43.9]}
10. Bd2 {[%clk 0:02:35.3]} 10... Bf5 {[%clk 0:02:35]} 11. g4 {[%clk 0:02:28.2]}
11... Bd3 {[%clk 0:02:23.1]} 12. Re1 {[%clk 0:02:27.2]} 12... e5 {[%clk
0:02:21.6]} 13. Bc3 {[%clk 0:02:25.2]} 13... e4 {[%clk 0:02:09.9]} 14. Nfd2
{[%clk 0:02:24.5]} 14... Nd5 {[%clk 0:02:03.6]} 15. a3 {[%clk 0:02:19.6]} 15...
f5 {[%clk 0:01:57.3]} 16. Nb3 {[%clk 0:01:55.5]} 16... b6 {[%clk 0:01:54.3]} 17.
Nc1 {[%clk 0:01:51]} 17... Ba6 {[%clk 0:01:49.1]} 18. Bd2 {[%clk 0:01:49.2]}
18... f4 {[%clk 0:01:42.9]} 19. Nc3 {[%clk 0:01:42.6]} 19... f3 {[%clk
0:01:40.7]} 20. Qb3 {[%clk 0:01:36.1]} 20... Ne7 {[%clk 0:01:33.7]} 21. Nxd5
{[%clk 0:01:31.1]} 21... Qxd5 {[%clk 0:01:30.9]} 22. Qxd5+ {[%clk 0:01:30.6]}
22... Nxd5 {[%clk 0:01:25.5]} 23. Bf1 {[%clk 0:01:30.8]} 23... Bxf1 {[%clk
0:01:24]} 24. Kxf1 {[%clk 0:01:31.7]} 24... c5 {[%clk 0:01:22]} 25. Nb3 {[%clk
0:01:22.7]} 25... Rac8 {[%clk 0:01:15.3]} 26. dxc5 {[%clk 0:01:22.6]} 26... Bxb2
{[%clk 0:01:11.3]} 27. Ra2 {[%clk 0:01:20.2]} 27... Be5 {[%clk 0:01:04.4]} 28.
cxb6 {[%clk 0:01:19.8]} 28... axb6 {[%clk 0:01:03.6]} 29. Rd1 {[%clk 0:01:18.3]}
29... Nc3 {[%clk 0:00:54.9]} 30. Bxc3 {[%clk 0:01:18.2]} 30... Rxc3 {[%clk
0:00:54.6]} 31. Nd2 {[%clk 0:01:12.9]} 31... Rd8 {[%clk 0:00:52.3]} 32. Ke1
{[%clk 0:01:10.2]} 32... Rcd3 {[%clk 0:00:44.2]} 33. Rc2 {[%clk 0:01:00.6]}
33... Bc3 {[%clk 0:00:42.2]} 34. Rxc3 {[%clk 0:00:58.6]} 34... Rxc3 {[%clk
0:00:40.9]} 35. a4 {[%clk 0:00:53.5]} 35... Rcd3 {[%clk 0:00:39.4]} 0-1

[Event "Late-Titled-Tuesday-Blitz-October-24-2023"]
[Site "Chess.com"]
[Date "2023.10.24"]
[Round "9"]
[White "YellowJacek"]
[Black "DvaHrasta"]
[Result "0-1"]
[WhiteElo "2321"]
[BlackElo "2504"]
[TimeControl "180+1"]
[EndTime "15:42:11 PDT"]
[Termination "DvaHrasta won by resignation"]

1. c4 {[%clk 0:02:55.8]} 1... e5 {[%clk 0:02:59]} 2. g3 {[%clk 0:02:55.3]} 2...
c6 {[%clk 0:02:57.8]} 3. Nf3 {[%clk 0:02:45.6]} 3... e4 {[%clk 0:02:56.6]} 4.
Nd4 {[%clk 0:02:45.8]} 4... d5 {[%clk 0:02:55.1]} 5. cxd5 {[%clk 0:02:45.2]}
5... Nf6 {[%clk 0:02:42.3]} 6. Nc3 {[%clk 0:02:43]} 6... Qb6 {[%clk 0:02:36.7]}
7. Nb3 {[%clk 0:02:39.5]} 7... cxd5 {[%clk 0:02:35]} 8. d3 {[%clk 0:02:34.5]}
8... a5 {[%clk 0:02:26.3]} 9. Be3 {[%clk 0:02:28.7]} 9... Qd8 {[%clk 0:02:15.2]}
10. Bg2 {[%clk 0:02:21.4]} 10... a4 {[%clk 0:02:12.2]} 11. Nd4 {[%clk
0:02:21.5]} 11... a3 {[%clk 0:02:07.5]} 12. Qb3 {[%clk 0:02:14.8]} 12... Nc6
{[%clk 0:01:57.4]} 13. Nxc6 {[%clk 0:02:12.5]} 13... bxc6 {[%clk 0:01:55.5]} 14.
dxe4 {[%clk 0:02:12.6]} 14... Be6 {[%clk 0:01:39.8]} 15. exd5 {[%clk 0:02:09.8]}
15... Rb8 {[%clk 0:01:28.7]} 16. Qa4 {[%clk 0:02:04.9]} 16... axb2 {[%clk
0:01:25.9]} 17. Rb1 {[%clk 0:02:00]} 17... Bb4 {[%clk 0:01:23.5]} 18. O-O {[%clk
0:01:56.2]} 18... O-O {[%clk 0:01:05.1]} 19. dxe6 {[%clk 0:01:51]} 19... Bxc3
{[%clk 0:01:01.3]} 20. Rfd1 {[%clk 0:01:46.3]} 20... Qe7 {[%clk 0:00:47.1]} 21.
Bd4 {[%clk 0:01:41.4]} 21... Rb4 {[%clk 0:00:36.9]} 22. Bxf6 {[%clk 0:01:21.2]}
22... Qxf6 {[%clk 0:00:36.5]} 23. Qxc6 {[%clk 0:01:21.1]} 23... fxe6 {[%clk
0:00:34.6]} 24. Bf3 {[%clk 0:01:10.9]} 24... g5 {[%clk 0:00:32.3]} 25. Rd3
{[%clk 0:01:03.7]} 25... Be5 {[%clk 0:00:29.4]} 26. Qc5 {[%clk 0:01:00.8]} 26...
Rfb8 {[%clk 0:00:27.7]} 27. Bg4 {[%clk 0:00:41]} 27... Rxg4 {[%clk 0:00:25.1]}
0-1